[Event "*** Titled Tuesday Blitz"]
[Site "Chess.com"]
[Date "2019.08.06"]
[Round "2"]
[White "santosalberto1987"]
[Black "Misha_Bilous"]
[Result "1/2-1/2"]
[WhiteElo "2475"]
[BlackElo "2446"]
[TimeControl "180+2"]
[EndTime "13:25:04 PDT"]
[Termination "Game drawn by stalemate"]

1. e4 {[%clk 0:03:01.9]} 1... c5 {[%clk 0:03:00.3]} 2. Nf3 {[%clk 0:03:02]} 2...
d6 {[%clk 0:03:00.9]} 3. Bb5+ {[%clk 0:03:01.4]} 3... Bd7 {[%clk 0:03:01.8]} 4.
Bxd7+ {[%clk 0:03:01.5]} 4... Qxd7 {[%clk 0:03:03.3]} 5. c4 {[%clk 0:03:01.6]}
5... Nc6 {[%clk 0:03:03.7]} 6. Nc3 {[%clk 0:03:02.3]} 6... g6 {[%clk 0:03:04.8]}
7. d4 {[%clk 0:03:01.6]} 7... cxd4 {[%clk 0:03:05.8]} 8. Nxd4 {[%clk 0:03:03]}
8... Bg7 {[%clk 0:03:07.3]} 9. Be3 {[%clk 0:03:03.7]} 9... Nf6 {[%clk
0:03:08.7]} 10. f3 {[%clk 0:03:04]} 10... O-O {[%clk 0:03:10.2]} 11. O-O {[%clk
0:03:03.8]} 11... e6 {[%clk 0:03:11.8]} 12. Qd2 {[%clk 0:02:57.7]} 12... Rfd8
{[%clk 0:03:12.6]} 13. Rad1 {[%clk 0:02:42]} 13... d5 {[%clk 0:03:11.8]} 14.
Nxc6 {[%clk 0:02:03.2]} 14... bxc6 {[%clk 0:03:12.3]} 15. e5 {[%clk 0:02:04.2]}
15... Ne8 {[%clk 0:03:11.9]} 16. f4 {[%clk 0:02:04.7]} 16... f6 {[%clk
0:02:58.4]} 17. Bd4 {[%clk 0:01:55.7]} 17... fxe5 {[%clk 0:02:57.7]} 18. Bxe5
{[%clk 0:01:55.5]} 18... Nc7 {[%clk 0:02:59.4]} 19. Qd4 {[%clk 0:01:44.7]} 19...
Rf8 {[%clk 0:02:47.1]} 20. Bxg7 {[%clk 0:01:43.5]} 20... Qxg7 {[%clk 0:02:46.9]}
21. Qxg7+ {[%clk 0:01:45.1]} 21... Kxg7 {[%clk 0:02:48]} 22. g3 {[%clk
0:01:45.7]} 22... Rad8 {[%clk 0:02:42.4]} 23. Na4 {[%clk 0:01:44.1]} 23... dxc4
{[%clk 0:02:35.1]} 24. Nc5 {[%clk 0:01:41.3]} 24... Rd5 {[%clk 0:02:35.8]} 25.
Ne4 {[%clk 0:01:31.9]} 25... Rfd8 {[%clk 0:02:32.2]} 26. Nc3 {[%clk 0:01:32.6]}
26... Rd2 {[%clk 0:02:26.8]} 27. Rxd2 {[%clk 0:01:32.1]} 27... Rxd2 {[%clk
0:02:27.2]} 28. Rf2 {[%clk 0:01:33.7]} 28... Rd3 {[%clk 0:02:21.6]} 29. Re2
{[%clk 0:01:33.1]} 29... Kf7 {[%clk 0:02:16.6]} 30. Kf2 {[%clk 0:01:33.6]} 30...
Nb5 {[%clk 0:02:11.3]} 31. Ne4 {[%clk 0:01:31.2]} 31... h6 {[%clk 0:02:04.2]}
32. Rd2 {[%clk 0:01:28.1]} 32... Rxd2+ {[%clk 0:01:55]} 33. Nxd2 {[%clk
0:01:28.2]} 33... c3 {[%clk 0:01:56.6]} 34. bxc3 {[%clk 0:01:24.9]} 34... Nxc3
{[%clk 0:01:58.1]} 35. a3 {[%clk 0:01:23.8]} 35... Kf6 {[%clk 0:01:43.8]} 36.
Nc4 {[%clk 0:01:22.6]} 36... Nd5 {[%clk 0:01:24.9]} 37. Kf3 {[%clk 0:01:20.4]}
37... g5 {[%clk 0:01:12.9]} 38. Ke4 {[%clk 0:01:15.9]} 38... gxf4 {[%clk
0:01:12]} 39. gxf4 {[%clk 0:01:16.3]} 39... Nc3+ {[%clk 0:01:05.6]} 40. Kd4
{[%clk 0:01:14.8]} 40... Ne2+ {[%clk 0:01:06.6]} 41. Ke3 {[%clk 0:01:12.7]}
41... Nc1 {[%clk 0:01:02.3]} 42. Ne5 {[%clk 0:01:04.5]} 42... Nb3 {[%clk
0:00:37.2]} 43. Nxc6 {[%clk 0:01:04.8]} 43... a6 {[%clk 0:00:38.6]} 44. Ke4
{[%clk 0:00:52.1]} 44... Nc5+ {[%clk 0:00:37.2]} 45. Kd4 {[%clk 0:00:52.6]}
45... Nd7 {[%clk 0:00:37]} 46. Nb4 {[%clk 0:00:50.9]} 46... Kf5 {[%clk
0:00:31.7]} 47. Nxa6 {[%clk 0:00:49.3]} 47... Kxf4 {[%clk 0:00:32.7]} 48. Nb4
{[%clk 0:00:44.5]} 48... e5+ {[%clk 0:00:32.4]} 49. Kd5 {[%clk 0:00:44.9]} 49...
e4 {[%clk 0:00:30.9]} 50. Kc6 {[%clk 0:00:42.5]} 50... Ne5+ {[%clk 0:00:30.6]}
51. Kb5 {[%clk 0:00:41]} 51... e3 {[%clk 0:00:30.4]} 52. Nd5+ {[%clk 0:00:33.7]}
52... Ke4 {[%clk 0:00:31.4]} 53. Nxe3 {[%clk 0:00:35]} 53... Kxe3 {[%clk
0:00:32.8]} 54. a4 {[%clk 0:00:36]} 54... Nf7 {[%clk 0:00:18.9]} 55. a5 {[%clk
0:00:33.7]} 55... Nd6+ {[%clk 0:00:20.3]} 56. Kc6 {[%clk 0:00:32.5]} 56... Nc8
{[%clk 0:00:19.9]} 57. Kb7 {[%clk 0:00:31.5]} 57... Nd6+ {[%clk 0:00:20.9]} 58.
Kc7 {[%clk 0:00:22.8]} 58... Nb5+ {[%clk 0:00:16.2]} 59. Kb6 {[%clk 0:00:22.9]}
59... Nd6 {[%clk 0:00:16.7]} 60. a6 {[%clk 0:00:23.5]} 60... Kd4 {[%clk
0:00:12.4]} 61. Kc6 {[%clk 0:00:19.2]} 61... Nc8 {[%clk 0:00:12.8]} 62. Kb7
{[%clk 0:00:19.6]} 62... Nd6+ {[%clk 0:00:13.6]} 63. Kc7 {[%clk 0:00:20.7]}
63... Kc5 {[%clk 0:00:12.7]} 64. a7 {[%clk 0:00:20.6]} 64... Nb5+ {[%clk
0:00:13.9]} 65. Kb7 {[%clk 0:00:21.1]} 65... Nxa7 {[%clk 0:00:15.3]} 66. Kxa7
{[%clk 0:00:22.6]} 66... h5 {[%clk 0:00:14.3]} 67. h4 {[%clk 0:00:22.8]} 67...
Kd4 {[%clk 0:00:14.4]} 68. Kb6 {[%clk 0:00:24.3]} 68... Ke4 {[%clk 0:00:15.9]}
69. Kc5 {[%clk 0:00:25.8]} 69... Kf4 {[%clk 0:00:17.6]} 70. Kd4 {[%clk
0:00:27.2]} 70... Kg4 {[%clk 0:00:18.7]} 71. Ke3 {[%clk 0:00:28.8]} 71... Kxh4
{[%clk 0:00:19.8]} 72. Kf2 {[%clk 0:00:30.4]} 72... Kh3 {[%clk 0:00:21.1]} 73.
Kg1 {[%clk 0:00:31.6]} 73... Kg3 {[%clk 0:00:22.8]} 74. Kh1 {[%clk 0:00:32.6]}
74... h4 {[%clk 0:00:24.7]} 75. Kg1 {[%clk 0:00:33.9]} 75... h3 {[%clk
0:00:26.6]} 76. Kh1 {[%clk 0:00:35.2]} 76... h2 {[%clk 0:00:28.5]} 1/2-1/2

[Event "*** Titled Tuesday Blitz"]
[Site "Chess.com"]
[Date "2019.08.06"]
[Round "2"]
[White "RitvarsReimanis"]
[Black "vpsetter"]
[Result "0-1"]
[WhiteElo "2576"]
[BlackElo "2652"]
[TimeControl "180+2"]
[EndTime "13:25:19 PDT"]
[Termination "vpsetter won by resignation"]

1. d4 {[%clk 0:03:01.8]} 1... Nf6 {[%clk 0:02:54.3]} 2. c4 {[%clk 0:03:03.1]}
2... e6 {[%clk 0:02:55.5]} 3. Nc3 {[%clk 0:03:04.5]} 3... Bb4 {[%clk 0:02:55.9]}
4. e3 {[%clk 0:03:06]} 4... O-O {[%clk 0:02:56.1]} 5. Ne2 {[%clk 0:03:07.4]}
5... d5 {[%clk 0:02:54.9]} 6. a3 {[%clk 0:03:08.1]} 6... Be7 {[%clk 0:02:55.5]}
7. cxd5 {[%clk 0:03:09.3]} 7... exd5 {[%clk 0:02:56]} 8. g3 {[%clk 0:03:10.9]}
8... Bf5 {[%clk 0:02:39.6]} 9. Bg2 {[%clk 0:03:12.3]} 9... c6 {[%clk 0:02:40.6]}
10. O-O {[%clk 0:03:13.8]} 10... Re8 {[%clk 0:02:41.3]} 11. b3 {[%clk
0:03:15.2]} 11... Nbd7 {[%clk 0:02:41.5]} 12. Ra2 {[%clk 0:03:16.6]} 12... Bf8
{[%clk 0:02:41.8]} 13. f3 {[%clk 0:03:17.9]} 13... h6 {[%clk 0:02:37.6]} 14. g4
{[%clk 0:03:18.3]} 14... Bh7 {[%clk 0:02:37.6]} 15. Nf4 {[%clk 0:03:19.9]} 15...
a5 {[%clk 0:02:34]} 16. a4 {[%clk 0:03:20.9]} 16... Bd6 {[%clk 0:02:34.2]} 17.
Nd3 {[%clk 0:03:19.4]} 17... c5 {[%clk 0:02:29.6]} 18. Nb5 {[%clk 0:03:17.8]}
18... Bf8 {[%clk 0:02:29.1]} 19. h3 {[%clk 0:03:17.8]} 19... Rc8 {[%clk
0:02:21.3]} 20. Na7 {[%clk 0:03:12.6]} 20... Ra8 {[%clk 0:02:20.6]} 21. Nb5
{[%clk 0:03:14]} 21... Qb6 {[%clk 0:02:14.4]} 22. Kh1 {[%clk 0:03:03.8]} 22...
Rac8 {[%clk 0:02:10.6]} 23. dxc5 {[%clk 0:02:55.9]} 23... Nxc5 {[%clk
0:02:10.3]} 24. Nf4 {[%clk 0:02:57.3]} 24... Rcd8 {[%clk 0:01:39.5]} 25. Bb2
{[%clk 0:02:58.3]} 25... Rxe3 {[%clk 0:01:32.1]} 26. Bd4 {[%clk 0:02:55.8]}
26... Ree8 {[%clk 0:01:16.4]} 27. Qa1 {[%clk 0:02:44.2]} 27... Qc6 {[%clk
0:01:09.5]} 28. Bxf6 {[%clk 0:02:39.6]} 28... gxf6 {[%clk 0:01:03]} 29. Nh5
{[%clk 0:02:30.9]} 29... Bg7 {[%clk 0:00:59.9]} 30. Nd4 {[%clk 0:02:21.7]} 30...
Qd6 {[%clk 0:00:53.6]} 31. Qc3 {[%clk 0:02:17]} 31... b6 {[%clk 0:00:46.1]} 32.
Nb5 {[%clk 0:02:12.3]} 32... Qe5 {[%clk 0:00:43.1]} 33. f4 {[%clk 0:01:40.2]}
33... Qxc3 {[%clk 0:00:20.6]} 34. Nxc3 {[%clk 0:01:42.1]} 34... Ne4 {[%clk
0:00:15.2]} 35. Nb5 {[%clk 0:01:27.8]} 35... f5 {[%clk 0:00:15.7]} 36. Nxg7
{[%clk 0:01:22.7]} 36... Kxg7 {[%clk 0:00:16.2]} 37. Bxe4 {[%clk 0:01:17.6]}
37... Rxe4 {[%clk 0:00:14.1]} 38. Rd2 {[%clk 0:01:14.4]} 38... fxg4 {[%clk
0:00:12.7]} 39. hxg4 {[%clk 0:01:16.3]} 39... d4 {[%clk 0:00:09.1]} 40. Rf3
{[%clk 0:01:05.8]} 40... f5 {[%clk 0:00:09.7]} 41. gxf5 {[%clk 0:00:55.3]} 41...
Bxf5 {[%clk 0:00:10.2]} 42. Kg2 {[%clk 0:00:38.3]} 42... Kf6 {[%clk 0:00:10.3]}
43. Rfd3 {[%clk 0:00:30.5]} 43... Re2+ {[%clk 0:00:05.6]} 44. Rxe2 {[%clk
0:00:27.3]} 44... Bxd3 {[%clk 0:00:06.6]} 45. Rd2 {[%clk 0:00:29.2]} 45... Bxb5
{[%clk 0:00:07.3]} 46. axb5 {[%clk 0:00:30]} 46... Rd5 {[%clk 0:00:08.1]} 47.
Kf3 {[%clk 0:00:30.2]} 47... Rxb5 {[%clk 0:00:08.4]} 48. Rd3 {[%clk 0:00:26.5]}
48... Rb4 {[%clk 0:00:08.9]} 49. Ke4 {[%clk 0:00:27.3]} 49... h5 {[%clk
0:00:09]} 50. f5 {[%clk 0:00:23]} 50... h4 {[%clk 0:00:09.5]} 51. Kf4 {[%clk
0:00:22.4]} 51... h3 {[%clk 0:00:09.1]} 52. Rxh3 {[%clk 0:00:23.6]} 52... d3+
{[%clk 0:00:09.3]} 53. Ke3 {[%clk 0:00:25.2]} 53... Kxf5 {[%clk 0:00:06.6]} 54.
Rh5+ {[%clk 0:00:22]} 54... Kg6 {[%clk 0:00:07.7]} 55. Rd5 {[%clk 0:00:22.7]}
55... Rxb3 {[%clk 0:00:08.8]} 56. Kf4 {[%clk 0:00:24.1]} 56... Kf6 {[%clk
0:00:09.3]} 57. Rd6+ {[%clk 0:00:25.3]} 57... Ke7 {[%clk 0:00:10.3]} 58. Rd5
{[%clk 0:00:26.7]} 58... Ke6 {[%clk 0:00:11.1]} 59. Rd8 {[%clk 0:00:28.2]} 59...
a4 {[%clk 0:00:10.9]} 60. Ke4 {[%clk 0:00:28.1]} 60... a3 {[%clk 0:00:11.7]} 61.
Ke3 {[%clk 0:00:29.4]} 61... b5 {[%clk 0:00:11.1]} 62. Ra8 {[%clk 0:00:29.3]}
62... b4 {[%clk 0:00:11.9]} 63. Ra5 {[%clk 0:00:27]} 63... Kd6 {[%clk
0:00:11.7]} 64. Kd4 {[%clk 0:00:26.4]} 64... d2 {[%clk 0:00:10.9]} 65. Rd5+
{[%clk 0:00:25.8]} 65... Kc6 {[%clk 0:00:11.2]} 66. Ke4 {[%clk 0:00:21.8]} 66...
Re3+ {[%clk 0:00:09.2]} 0-1

[Event "*** Titled Tuesday Blitz"]
[Site "Chess.com"]
[Date "2019.08.06"]
[Round "2"]
[White "Konavets"]
[Black "Chigorinetz"]
[Result "1-0"]
[WhiteElo "2995"]
[BlackElo "2640"]
[TimeControl "180+2"]
[EndTime "13:25:50 PDT"]
[Termination "Konavets won by checkmate"]

1. e4 {[%clk 0:03:01.9]} 1... c5 {[%clk 0:02:59.3]} 2. Nf3 {[%clk 0:03:03.1]}
2... Nc6 {[%clk 0:03:00.7]} 3. Nc3 {[%clk 0:03:03.2]} 3... g6 {[%clk 0:03:01.1]}
4. d4 {[%clk 0:03:02.9]} 4... cxd4 {[%clk 0:03:02.2]} 5. Nxd4 {[%clk 0:03:04.8]}
5... Bg7 {[%clk 0:03:03.8]} 6. Be3 {[%clk 0:03:06.1]} 6... Nf6 {[%clk
0:03:04.7]} 7. Bc4 {[%clk 0:03:04.2]} 7... O-O {[%clk 0:03:04.2]} 8. Bb3 {[%clk
0:03:05.3]} 8... d6 {[%clk 0:03:04.4]} 9. f3 {[%clk 0:03:06.1]} 9... Qa5 {[%clk
0:03:04.7]} 10. Qd2 {[%clk 0:03:06.7]} 10... Nxd4 {[%clk 0:03:04.2]} 11. Bxd4
{[%clk 0:03:07.2]} 11... Be6 {[%clk 0:03:05.4]} 12. Bxe6 {[%clk 0:02:52.9]}
12... fxe6 {[%clk 0:03:05.6]} 13. O-O {[%clk 0:02:54.6]} 13... Nd7 {[%clk
0:03:04.3]} 14. Kh1 {[%clk 0:02:54.6]} 14... Bxd4 {[%clk 0:02:54.4]} 15. Qxd4
{[%clk 0:02:56.5]} 15... Qc5 {[%clk 0:02:53.9]} 16. Qd2 {[%clk 0:02:50.1]} 16...
b5 {[%clk 0:02:52.3]} 17. Ne2 {[%clk 0:02:51]} 17... Rac8 {[%clk 0:02:44.5]} 18.
Nd4 {[%clk 0:02:51.6]} 18... Rf6 {[%clk 0:02:38.6]} 19. c3 {[%clk 0:02:49.5]}
19... Ne5 {[%clk 0:02:31.4]} 20. Rad1 {[%clk 0:02:46.5]} 20... a5 {[%clk
0:02:23.8]} 21. Qh6 {[%clk 0:02:43.7]} 21... Nf7 {[%clk 0:02:14.8]} 22. Qh3
{[%clk 0:02:43.9]} 22... Rb8 {[%clk 0:01:47.9]} 23. Nxe6 {[%clk 0:02:42.7]}
23... Qc8 {[%clk 0:01:47.6]} 24. Nd4 {[%clk 0:02:39.3]} 24... Qxh3 {[%clk
0:01:46.7]} 25. gxh3 {[%clk 0:02:41.2]} 25... Ne5 {[%clk 0:01:48.2]} 26. b3
{[%clk 0:02:30.8]} 26... Rf4 {[%clk 0:01:25.4]} 27. Kg2 {[%clk 0:02:18.3]} 27...
Kf7 {[%clk 0:01:17.7]} 28. Kg3 {[%clk 0:02:18.8]} 28... g5 {[%clk 0:01:16.3]}
29. Ne2 {[%clk 0:01:57.4]} 29... Rf6 {[%clk 0:01:13.3]} 30. Rd5 {[%clk
0:01:58.3]} 30... a4 {[%clk 0:01:05.4]} 31. b4 {[%clk 0:01:53.2]} 31... h5
{[%clk 0:00:47.6]} 32. Nd4 {[%clk 0:01:52.9]} 32... h4+ {[%clk 0:00:46.6]} 33.
Kg2 {[%clk 0:01:42]} 33... a3 {[%clk 0:00:31]} 34. Rxb5 {[%clk 0:01:39.4]} 34...
Rc8 {[%clk 0:00:30.7]} 35. Ne2 {[%clk 0:01:35.5]} 35... Ke6 {[%clk 0:00:19.9]}
36. Rd5 {[%clk 0:01:30.3]} 36... Rcf8 {[%clk 0:00:19.9]} 37. Nd4+ {[%clk
0:01:31.3]} 37... Kd7 {[%clk 0:00:19.9]} 38. Ra5 {[%clk 0:01:22.4]} 38... Rc8
{[%clk 0:00:20.7]} 39. Ra7+ {[%clk 0:01:23.2]} 39... Ke8 {[%clk 0:00:21.4]} 40.
Ne2 {[%clk 0:01:19.9]} 40... Nd3 {[%clk 0:00:21.5]} 41. Rxa3 {[%clk 0:01:18.6]}
41... e6 {[%clk 0:00:19.8]} 42. Rd1 {[%clk 0:01:17]} 42... Ne5 {[%clk
0:00:18.4]} 43. Rxd6 {[%clk 0:00:53.7]} 43... Nc4 {[%clk 0:00:16.2]} 44. Rda6
{[%clk 0:00:55]} 44... Nxa3 {[%clk 0:00:12.8]} 45. Rxa3 {[%clk 0:00:56.9]} 45...
Rd8 {[%clk 0:00:14]} 46. Kf2 {[%clk 0:00:56.5]} 46... Rd3 {[%clk 0:00:14.5]} 47.
Nd4 {[%clk 0:00:55.1]} 47... e5 {[%clk 0:00:14]} 48. Nf5 {[%clk 0:00:55.1]}
48... Rd2+ {[%clk 0:00:10.6]} 49. Ke3 {[%clk 0:00:56.4]} 49... Rxh2 {[%clk
0:00:09.7]} 50. Ra5 {[%clk 0:00:58]} 50... Rc6 {[%clk 0:00:09.2]} 51. Rxe5+
{[%clk 0:00:58.9]} 51... Kf7 {[%clk 0:00:11.1]} 52. Kd3 {[%clk 0:00:44.4]} 52...
Rxh3 {[%clk 0:00:11.4]} 53. Nd4 {[%clk 0:00:45.7]} 53... Ra6 {[%clk 0:00:11.7]}
54. Rxg5 {[%clk 0:00:46.4]} 54... Rxa2 {[%clk 0:00:12.2]} 55. b5 {[%clk
0:00:47.5]} 55... Rh1 {[%clk 0:00:12.1]} 56. b6 {[%clk 0:00:45.9]} 56... Rb2
{[%clk 0:00:10.2]} 57. Nb5 {[%clk 0:00:42.8]} 57... h3 {[%clk 0:00:10.3]} 58.
Kc4 {[%clk 0:00:35.8]} 58... Rd1 {[%clk 0:00:09.4]} 59. b7 {[%clk 0:00:33.3]}
59... Rd8 {[%clk 0:00:09]} 60. Rh5 {[%clk 0:00:34.5]} 60... h2 {[%clk
0:00:09.2]} 61. Kc5 {[%clk 0:00:34.2]} 61... Kg7 {[%clk 0:00:09.4]} 62. Kc6
{[%clk 0:00:33.5]} 62... Rf8 {[%clk 0:00:05.7]} 63. e5 {[%clk 0:00:33]} 63...
Kg6 {[%clk 0:00:06.6]} 64. Rh3 {[%clk 0:00:31.8]} 64... Rxf3 {[%clk 0:00:08.5]}
65. b8=Q {[%clk 0:00:13.1]} 65... Rxh3 {[%clk 0:00:10.4]} 66. Qg8+ {[%clk
0:00:14.1]} 66... Kh5 {[%clk 0:00:10.1]} 67. Qh7+ {[%clk 0:00:15.3]} 67... Kg4
{[%clk 0:00:10.8]} 68. Qe4+ {[%clk 0:00:16.8]} 68... Kg3 {[%clk 0:00:11.7]} 69.
Qh1 {[%clk 0:00:18.4]} 69... Rh6+ {[%clk 0:00:10]} 70. Kc5 {[%clk 0:00:16.4]}
70... Rg2 {[%clk 0:00:10.2]} 71. Nd4 {[%clk 0:00:17.7]} 71... Rh5 {[%clk
0:00:09.7]} 72. Kd6 {[%clk 0:00:18]} 72... Kf2 {[%clk 0:00:10.5]} 73. e6 {[%clk
0:00:18.3]} 73... Rh6 {[%clk 0:00:08.3]} 74. Kd7 {[%clk 0:00:19.1]} 74... Rg7+
{[%clk 0:00:07.3]} 75. e7 {[%clk 0:00:20.4]} 75... Rhh7 {[%clk 0:00:08.2]} 76.
Qf3+ {[%clk 0:00:21.1]} 76... Kg1 {[%clk 0:00:07.6]} 77. Ne2# {[%clk 0:00:22]}
1-0

[Event "*** Titled Tuesday Blitz"]
[Site "Chess.com"]
[Date "2019.08.06"]
[Round "2"]
[White "Shahinyan_ChessMood"]
[Black "hurricane7791"]
[Result "1-0"]
[WhiteElo "2755"]
[BlackElo "2715"]
[TimeControl "180+2"]
[EndTime "13:26:06 PDT"]
[Termination "Shahinyan_ChessMood won by resignation"]

1. e4 {[%clk 0:03:01.9]} 1... c5 {[%clk 0:02:58.7]} 2. Nc3 {[%clk 0:03:01.9]}
2... Nc6 {[%clk 0:02:59.4]} 3. Bb5 {[%clk 0:03:01.8]} 3... Nd4 {[%clk
0:03:00.3]} 4. Nf3 {[%clk 0:03:01]} 4... a6 {[%clk 0:02:58.1]} 5. Bd3 {[%clk
0:03:01.1]} 5... e6 {[%clk 0:02:57.3]} 6. O-O {[%clk 0:03:00.7]} 6... Ne7 {[%clk
0:02:56.5]} 7. Nxd4 {[%clk 0:03:00.5]} 7... cxd4 {[%clk 0:02:58.4]} 8. Ne2
{[%clk 0:03:02.4]} 8... Nc6 {[%clk 0:02:59.2]} 9. c3 {[%clk 0:03:03.7]} 9...
dxc3 {[%clk 0:03:00.1]} 10. dxc3 {[%clk 0:03:04.3]} 10... b5 {[%clk 0:02:57.3]}
11. Bc2 {[%clk 0:03:01.2]} 11... Bb7 {[%clk 0:02:57.3]} 12. Bf4 {[%clk
0:03:02.1]} 12... d6 {[%clk 0:02:56.5]} 13. Qd2 {[%clk 0:03:02.1]} 13... Qc7
{[%clk 0:02:57.5]} 14. Rad1 {[%clk 0:03:03.1]} 14... Ne5 {[%clk 0:02:58.7]} 15.
Bxe5 {[%clk 0:03:01.4]} 15... dxe5 {[%clk 0:03:00.6]} 16. a4 {[%clk 0:03:03.3]}
16... Be7 {[%clk 0:02:56]} 17. axb5 {[%clk 0:02:57.5]} 17... axb5 {[%clk
0:02:57.9]} 18. Bd3 {[%clk 0:02:58.8]} 18... O-O {[%clk 0:02:57.2]} 19. Ng3
{[%clk 0:02:51.1]} 19... Rfd8 {[%clk 0:02:49.8]} 20. Qe2 {[%clk 0:02:52.5]}
20... b4 {[%clk 0:02:51.3]} 21. cxb4 {[%clk 0:02:48.3]} 21... Bxb4 {[%clk
0:02:53.2]} 22. Bc4 {[%clk 0:02:47.5]} 22... g6 {[%clk 0:02:48.6]} 23. b3 {[%clk
0:02:46.6]} 23... Bc5 {[%clk 0:02:49.3]} 24. h4 {[%clk 0:02:43.3]} 24... Qe7
{[%clk 0:02:48.2]} 25. h5 {[%clk 0:02:39.7]} 25... Qg5 {[%clk 0:02:34.3]} 26.
Qf3 {[%clk 0:02:37.9]} 26... Qh4 {[%clk 0:02:27.7]} 27. Rxd8+ {[%clk 0:01:44.2]}
27... Rxd8 {[%clk 0:02:25.4]} 28. Be2 {[%clk 0:01:45.7]} 28... Kg7 {[%clk
0:02:19.6]} 29. Rd1 {[%clk 0:01:45.2]} 29... Bd4 {[%clk 0:02:14]} 30. Bd3 {[%clk
0:01:41]} 30... f5 {[%clk 0:02:01]} 31. Rd2 {[%clk 0:01:31.2]} 31... Bb6 {[%clk
0:01:51.1]} 32. Re2 {[%clk 0:01:19.9]} 32... f4 {[%clk 0:01:16.4]} 33. Nf1
{[%clk 0:01:16.8]} 33... Qxh5 {[%clk 0:01:17.5]} 34. Bc4 {[%clk 0:01:10.9]}
34... Kf6 {[%clk 0:01:13.8]} 35. Rd2 {[%clk 0:01:08.5]} 35... Qxf3 {[%clk
0:01:06.7]} 36. gxf3 {[%clk 0:01:08.4]} 36... Rxd2 {[%clk 0:01:07.9]} 37. Nxd2
{[%clk 0:01:10.3]} 37... Ba5 {[%clk 0:01:07.5]} 38. Nf1 {[%clk 0:01:02.9]} 38...
g5 {[%clk 0:01:08.2]} 39. Kg2 {[%clk 0:01:02]} 39... h5 {[%clk 0:01:09.5]} 40.
Nh2 {[%clk 0:01:02]} 40... Bb4 {[%clk 0:01:09.5]} 41. Bd3 {[%clk 0:01:02]} 41...
Bc5 {[%clk 0:01:07.5]} 42. Nf1 {[%clk 0:00:57.5]} 42... Bb4 {[%clk 0:01:08.4]}
43. Nh2 {[%clk 0:00:58.1]} 43... Bc6 {[%clk 0:01:09.7]} 44. Kf1 {[%clk
0:00:54.1]} 44... Bc5 {[%clk 0:01:03.8]} 45. Ke2 {[%clk 0:00:52.9]} 45... Bd7
{[%clk 0:01:02.8]} 46. Nf1 {[%clk 0:00:51.7]} 46... g4 {[%clk 0:01:03.7]} 47.
Nd2 {[%clk 0:00:41.1]} 47... Bd4 {[%clk 0:00:53]} 48. Kf1 {[%clk 0:00:38.5]}
48... Bc3 {[%clk 0:00:47.2]} 49. Nc4 {[%clk 0:00:26.5]} 49... gxf3 {[%clk
0:00:48]} 50. Bc2 {[%clk 0:00:27]} 50... Bc6 {[%clk 0:00:48.5]} 51. Kg1 {[%clk
0:00:27.2]} 51... Kg5 {[%clk 0:00:48.2]} 52. Nd6 {[%clk 0:00:25.1]} 52... Bb4
{[%clk 0:00:45.1]} 53. Nc4 {[%clk 0:00:08.8]} 53... Bc3 {[%clk 0:00:45]} 54. Nd6
{[%clk 0:00:09.6]} 54... Kf6 {[%clk 0:00:45.7]} 55. Kh2 {[%clk 0:00:08.1]} 55...
Bd4 {[%clk 0:00:45]} 56. Kg1 {[%clk 0:00:09.6]} 56... Ke7 {[%clk 0:00:45.8]} 57.
Nc4 {[%clk 0:00:10.2]} 57... h4 {[%clk 0:00:43.4]} 58. Nd2 {[%clk 0:00:09.6]}
58... h3 {[%clk 0:00:30]} 59. Nxf3 {[%clk 0:00:10.8]} 59... Kd6 {[%clk
0:00:31.3]} 60. Bd3 {[%clk 0:00:06.8]} 60... Kc5 {[%clk 0:00:31.6]} 61. Ng5
{[%clk 0:00:08.2]} 61... Kb4 {[%clk 0:00:28.2]} 62. Nxh3 {[%clk 0:00:06.9]}
62... Kc3 {[%clk 0:00:28.4]} 63. Bc4 {[%clk 0:00:08.2]} 63... Bxe4 {[%clk
0:00:28.7]} 64. Bxe6 {[%clk 0:00:06.1]} 64... Kd2 {[%clk 0:00:30]} 65. Ng5
{[%clk 0:00:07.1]} 65... Bc6 {[%clk 0:00:27.3]} 66. Bf5 {[%clk 0:00:02.4]} 66...
Ke1 {[%clk 0:00:27.8]} 67. Ne4 {[%clk 0:00:03.9]} 67... Ke2 {[%clk 0:00:23]} 68.
Kg2 {[%clk 0:00:04.7]} 68... f3+ {[%clk 0:00:23.5]} 69. Kg3 {[%clk 0:00:05.1]}
69... Bd5 {[%clk 0:00:20.8]} 70. b4 {[%clk 0:00:05.9]} 70... Bb6 {[%clk
0:00:21.6]} 71. Nc3+ {[%clk 0:00:06.6]} 71... Ke1 {[%clk 0:00:13.2]} 72. Nxd5
{[%clk 0:00:08.5]} 72... Bxf2+ {[%clk 0:00:14.5]} 73. Kxf3 {[%clk 0:00:10.1]}
73... Bd4 {[%clk 0:00:15.8]} 74. Ke4 {[%clk 0:00:10.8]} 74... Kd2 {[%clk
0:00:17]} 75. Bd7 {[%clk 0:00:10.2]} 75... Kc2 {[%clk 0:00:17.3]} 76. Ba4+
{[%clk 0:00:11.7]} 76... Kb2 {[%clk 0:00:18.1]} 77. Bd1 {[%clk 0:00:13.2]} 77...
Ka3 {[%clk 0:00:20]} 78. b5 {[%clk 0:00:13.7]} 1-0

[Event "*** Titled Tuesday Blitz"]
[Site "Chess.com"]
[Date "2019.08.06"]
[Round "3"]
[White "Pechen_Yeltsina"]
[Black "Bigfish1995"]
[Result "0-1"]
[WhiteElo "2669"]
[BlackElo "3055"]
[TimeControl "180+2"]
[EndTime "13:29:26 PDT"]
[Termination "Bigfish1995 won by resignation"]

1. d4 {[%clk 0:03:01.9]} 1... Nf6 {[%clk 0:03:00]} 2. c4 {[%clk 0:03:03.1]} 2...
g6 {[%clk 0:03:01.3]} 3. Nc3 {[%clk 0:03:04.3]} 3... d5 {[%clk 0:03:02.6]} 4.
Nf3 {[%clk 0:03:03.9]} 4... Bg7 {[%clk 0:03:03.6]} 5. Bg5 {[%clk 0:03:04.8]}
5... Ne4 {[%clk 0:03:03.2]} 6. cxd5 {[%clk 0:03:06.1]} 6... Nxg5 {[%clk
0:03:03.7]} 7. Nxg5 {[%clk 0:03:08]} 7... e6 {[%clk 0:03:04.4]} 8. Nf3 {[%clk
0:03:08.7]} 8... exd5 {[%clk 0:03:05.6]} 9. e3 {[%clk 0:03:10.1]} 9... c6 {[%clk
0:03:04.4]} 10. b4 {[%clk 0:03:07.7]} 10... Be6 {[%clk 0:02:46.3]} 11. Bd3
{[%clk 0:03:08]} 11... Nd7 {[%clk 0:02:47]} 12. O-O {[%clk 0:03:08.6]} 12... O-O
{[%clk 0:02:45.2]} 13. Ng5 {[%clk 0:02:57]} 13... Qxg5 {[%clk 0:02:45.2]} 0-1

[Event "*** Titled Tuesday Blitz"]
[Site "Chess.com"]
[Date "2019.08.06"]
[Round "3"]
[White "S-Fazulyanov"]
[Black "Lion_DL"]
[Result "1-0"]
[WhiteElo "2489"]
[BlackElo "2337"]
[TimeControl "180+2"]
[EndTime "13:30:45 PDT"]
[Termination "S-Fazulyanov won by resignation"]

1. e4 {[%clk 0:03:01.9]} 1... c5 {[%clk 0:03:00.2]} 2. Nf3 {[%clk 0:03:00.2]}
2... e6 {[%clk 0:03:01.2]} 3. d4 {[%clk 0:03:01.6]} 3... cxd4 {[%clk 0:03:01.6]}
4. Nxd4 {[%clk 0:03:03.2]} 4... a6 {[%clk 0:03:03.5]} 5. c4 {[%clk 0:03:04.3]}
5... Qc7 {[%clk 0:03:02.9]} 6. Nc3 {[%clk 0:03:05]} 6... Bb4 {[%clk 0:03:01.2]}
7. Be2 {[%clk 0:03:04.6]} 7... Nf6 {[%clk 0:03:01.4]} 8. O-O {[%clk 0:03:05.2]}
8... Bxc3 {[%clk 0:02:59.9]} 9. bxc3 {[%clk 0:03:05.5]} 9... Nxe4 {[%clk
0:03:00.9]} 10. Bf3 {[%clk 0:03:05.2]} 10... Nc5 {[%clk 0:03:01]} 11. Nb3 {[%clk
0:03:02.3]} 11... d6 {[%clk 0:02:47.3]} 12. Bf4 {[%clk 0:03:01]} 12... e5 {[%clk
0:02:47]} 13. Nxc5 {[%clk 0:03:01.2]} 13... dxc5 {[%clk 0:02:26.2]} 14. Bxe5
{[%clk 0:03:00.7]} 14... Qa5 {[%clk 0:02:16.7]} 15. Bxg7 {[%clk 0:02:59.8]}
15... Rg8 {[%clk 0:02:17.1]} 16. Re1+ {[%clk 0:02:57.5]} 16... Be6 {[%clk
0:02:18]} 17. Qd6 {[%clk 0:02:50.5]} 17... Rxg7 {[%clk 0:02:11.8]} 18. Bxb7
{[%clk 0:02:50.7]} 1-0